bitfinex-derivatives/quotes_BTCF0:USTF0_20260111
["timestamp","ask_amount","ask_price","bid_price","bid_amount"]
[1768152838115,0.09447192,91108.0,91090.0,0.14663981]
[1768152838515,0.09447192,91108.0,91099.0,0.010992]
[1768152841614,0.09447192,91108.0,91100.0,0.010992]
[1768152842200,0.09447192,91108.0,91098.0,0.010992]
[1768152843516,0.09447192,91108.0,91092.0,0.010993]
[1768152844814,0.09447192,91108.0,91100.0,0.010992]
[1768152845217,0.09447192,91108.0,91086.0,0.010993]
[1768152845410,0.09447192,91108.0,91090.0,0.15065481]
[1768152846412,0.09447192,91108.0,91100.0,0.010992]
[1768152846605,0.09447192,91108.0,91090.0,0.16164781]
[1768152846805,0.09447192,91108.0,91099.0,0.010992]
[1768152847916,0.09447192,91108.0,91100.0,0.010992]
[1768152850711,0.09447192,91108.0,91097.0,0.010992]
[1768152851320,0.0952048,91107.0,91097.0,0.010992]
[1768152852120,0.0952048,91107.0,91095.0,0.010992]
[1768152852414,0.0952048,91107.0,91096.0,0.010992]
[1768152852816,0.0952048,91107.0,91090.0,0.15065481]
[1768152853722,0.0952048,91107.0,91091.0,0.010993]
[1768152855019,0.0952048,91107.0,91098.0,0.010992]
[1768152857620,0.0952048,91107.0,91099.0,0.010992]
[1768152858321,0.0952048,91107.0,91088.0,0.0871453]
[1768152859424,0.0952048,91107.0,91098.0,0.010992]
[1768152860522,0.0952048,91107.0,91096.0,0.010992]
[1768152860824,0.0952048,91106.0,91096.0,0.010992]
[1768152861129,0.0952048,91106.0,91094.0,0.010992]
[1768152861325,0.0952048,91106.0,91096.0,0.010992]
[1768152863622,0.0952048,91106.0,91089.0,0.010993]
[1768152863814,0.0952048,91106.0,91096.0,0.010992]
[1768152869028,0.0952048,91106.0,91097.0,0.010992]
[1768152869329,0.0952048,91106.0,91095.0,0.010992]
[1768152870432,0.0952048,91106.0,91089.0,0.010993]
[1768152870731,0.0952048,91106.0,91096.0,0.010992]
[1768152875733,0.0952048,91106.0,91097.0,0.010992]
[1768152877235,0.0952048,91106.0,91098.0,0.010992]
[1768152880146,0.0952048,91106.0,91088.0,0.09344]
[1768152880546,0.0952048,91106.0,91097.0,0.010992]
[1768152882843,0.0952048,91106.0,91098.0,0.010992]
[1768152885549,0.0952048,91106.0,91088.0,0.079425]
[1768152886448,0.0952048,91106.0,91097.0,0.010992]
[1768152886950,0.0952048,91106.0,91088.0,0.079425]
[1768152886951,0.0952048,91106.0,91098.0,0.010992]
[1768152887851,0.0952048,91106.0,91090.0,0.010993]
[1768152888040,0.0952048,91106.0,91101.0,0.010992]
[1768152888240,0.0952048,91106.0,91090.0,0.010993]
[1768152888440,0.0952048,91106.0,91099.0,0.010992]
[1768152888634,0.09448101,91111.0,91092.0,0.010993]
[1768152888836,0.19171117,91118.0,91110.0,0.010991]
[1768152889041,0.09344,91118.0,91110.0,0.010991]
[1768152889341,0.09344,91118.0,91111.0,0.01099]
[1768152889741,0.09344,91118.0,91108.0,0.010991]
[1768152891043,0.09344,91118.0,91107.0,0.010991]
[1768152891246,0.09344,91118.0,91109.0,0.010991]
[1768152892547,0.09344,91118.0,91108.0,0.00910006]
[1768152892743,0.09344,91118.0,91100.0,0.18586015]
[1768152893052,0.09448101,91117.0,91107.0,0.010991]
[1768152893745,0.19275218,91117.0,91107.0,0.010991]
[1768152893944,0.09448101,91116.0,91104.0,0.010991]
[1768152894346,0.09448101,91116.0,91106.0,0.010991]
[1768152894749,0.09448101,91116.0,91103.0,0.010991]
[1768152895047,0.19275218,91115.0,91103.0,0.010991]
[1768152895250,0.09448101,91114.0,91100.0,0.02217944]
[1768152895451,0.09448101,91114.0,91102.0,0.010992]
[1768152895952,0.09448101,91113.0,91101.0,0.010992]
[1768152898638,0.09448101,91113.0,91103.0,0.010991]
[1768152899554,0.09448101,91113.0,91098.0,0.09161844]
[1768152900253,0.09448101,91113.0,91103.0,0.010991]
[1768152900450,0.09344,91118.0,91105.0,0.010991]
[1768152900754,0.09448101,91116.0,91105.0,0.010991]
[1768152901054,0.09448101,91115.0,91105.0,0.010991]
[1768152901257,0.09448101,91115.0,91102.0,0.010992]
[1768152902251,0.09448101,91112.0,91083.0,0.28469994]
[1768152902449,0.09448101,91094.0,91086.0,0.0934]
[1768152902655,0.09448101,91093.0,91082.0,0.14463369]
[1768152902956,0.03062617,91088.0,91076.0,0.41778115]
[1768152903156,0.03062617,91088.0,91080.0,0.010994]
[1768152903458,0.03062617,91088.0,91080.0,0.0627649]
[1768152904146,0.03062617,91088.0,91080.0,0.010994]
[1768152904351,0.03062617,91088.0,91080.0,0.02222085]
[1768152908058,0.03062617,91088.0,91080.0,0.01122685]
[1768152908259,0.03062617,91088.0,91077.0,0.010995]
[1768152908659,0.03062617,91088.0,91079.0,0.010994]
[1768152908952,0.03062617,91088.0,91074.0,0.0934]
[1768152908953,0.03062617,91088.0,91076.0,0.010995]
[1768152909159,0.03062617,91088.0,91078.0,0.010994]
[1768152909749,0.03062617,91088.0,91075.0,0.010995]
[1768152909949,0.03062617,91088.0,91077.0,0.010995]
[1768152910658,0.03062617,91088.0,91077.0,0.02205584]
[1768152911059,0.03062617,91088.0,91079.0,0.010994]
[1768152912456,0.03062617,91088.0,91077.0,0.01106084]
[1768152912661,0.03062617,91088.0,91078.0,0.010994]
[1768152914863,0.03062617,91088.0,91077.0,0.01097484]
[1768152915064,0.03062617,91088.0,91077.0,0.010995]
[1768152917557,0.03062617,91088.0,91074.0,0.0934]
[1768152917864,0.03062617,91088.0,91076.0,0.010995]
[1768152918061,0.03062617,91088.0,91076.0,0.02183293]
[1768152919150,0.03062617,91088.0,91077.0,0.010994]
[1768152919665,0.09827117,91089.0,91076.0,0.01083793]
[1768152919862,0.03114042,91092.0,91074.0,0.0934]
[1768152920164,0.03114042,91092.0,91079.0,0.010994]
[1768152920767,0.04213342,91092.0,91074.0,0.10445654]
[1768152921559,0.03114042,91092.0,91078.0,0.010994]
[1768152921758,0.03114042,91092.0,91079.0,0.010994]
[1768152924566,0.03114042,91092.0,91080.0,0.010994]
[1768152930468,0.03114042,91092.0,91077.0,0.010995]
[1768152931367,0.04083011,91091.0,91075.0,0.010995]
[1768152932569,0.04083011,91091.0,91076.0,0.010995]
[1768152932971,0.02982557,91090.0,91076.0,0.010995]
[1768152933371,0.02982557,91090.0,91077.0,0.010994]
[1768152933763,0.18054585,91090.0,91077.0,0.010994]
[1768152934373,0.18054585,91090.0,91078.0,0.010994]
[1768152935174,0.02982557,91090.0,91078.0,0.010994]
[1768152937673,0.02982557,91090.0,91076.0,0.010995]
[1768152944279,0.12670979,91090.0,91076.0,0.010995]
[1768152944478,0.029675,91089.0,91074.0,0.02205154]
[1768152946781,0.029675,91089.0,91074.0,0.01105654]
[1768152946982,0.029675,91089.0,91077.0,0.010995]
[1768152947280,0.029675,91089.0,91067.0,1.04943979]
[1768152947281,0.02771245,91088.0,91043.0,0.0988854]
[1768152947477,0.30144056,91057.0,91025.0,0.00098975]
[1768152947670,0.30144056,91057.0,91006.0,0.1101]
[1768152947671,0.15072028,91035.0,91020.0,0.09494757]
[1768152947874,0.00035483,91038.0,91018.0,0.01266429]
[1768152947875,0.09344,91034.0,91018.0,0.01266429]
[1768152948072,0.15072028,91040.0,91021.0,0.09494757]
[1768152948277,0.09344,91039.0,91021.0,0.09494757]
[1768152948478,7.741e-05,91038.0,91021.0,0.09494757]
[1768152948675,0.01107641,91038.0,91021.0,0.09494757]
[1768152948885,0.09344,91037.0,91021.0,0.09494757]
[1768152949385,0.011,91036.0,91021.0,0.09494757]
[1768152950476,0.011,91033.0,91021.0,0.09494757]
[1768152952480,0.011,91037.0,91022.0,0.09458465]
[1768152952679,0.011,91035.0,91024.0,0.09494757]
[1768152955781,0.09344,91036.0,91024.0,0.09494757]
[1768152955782,0.011,91033.0,91024.0,0.09494757]
[1768152956181,0.10444,91036.0,91024.0,0.09494757]
[1768152956680,0.011,91034.0,91024.0,0.09494757]
[1768152956880,0.09344,91033.0,91024.0,0.09494757]
[1768152961294,0.011001,91028.0,91017.0,0.09458465]
[1768152961483,0.011001,91026.0,91017.0,0.09458465]
[1768152961685,0.011001,91027.0,91017.0,0.09458465]
[1768152962081,0.15072028,91030.0,91009.0,0.09458465]
[1768152962285,0.011002,91016.0,91005.0,0.00549423]
[1768152962481,0.09355741,91015.0,91005.0,0.00549423]
[1768152963293,0.09355741,91015.0,91005.0,0.0180591]
[1768152965689,0.011002,91014.0,91005.0,0.00549423]
[1768152966190,0.09355741,91015.0,91005.0,0.00549423]
[1768152966591,0.09355741,91015.0,91005.0,0.01649723]
[1768152966988,0.09348,91015.0,91010.0,0.09216692]
[1768152967189,0.09348,91016.0,91012.0,0.09831272]
[1768152967390,0.09348,91016.0,91008.0,0.011003]
[1768152967691,0.09348,91016.0,91010.0,0.011003]
[1768152967996,0.09348,91016.0,91007.0,0.19047964]
[1768152967997,0.09348,91016.0,91007.0,0.20148264]
[1768152968193,0.09348,91016.0,91009.0,0.011003]
[1768152969797,0.09348,91016.0,91011.0,0.011003]
[1768152971486,0.09348,91016.0,91005.0,0.00549423]
[1768152971893,0.09348,91016.0,91008.0,0.011003]
[1768152972094,0.09348,91016.0,91005.0,0.00549423]
[1768152972396,0.09267963,91012.0,91001.0,0.01263506]
[1768152972696,0.09267963,91008.0,90990.0,0.15072028]
[1768152973000,0.09267963,91007.0,90990.0,0.15072028]
[1768152973192,0.09348,91016.0,90990.0,0.15072028]
[1768152973193,0.09267963,91012.0,90996.0,0.011004]
[1768152973800,0.09267963,91015.0,90999.0,0.011004]
[1768152973999,0.09267963,91015.0,90996.0,0.01259794]
[1768152974195,0.09267963,91015.0,90995.0,0.10707212]
[1768152974693,0.09348,91014.0,91005.0,0.18823472]
[1768152974890,0.09348,91014.0,91005.0,0.0921666]
[1768152975696,0.104482,91014.0,91000.0,0.0921666]
[1768152975895,0.09348,91014.0,91000.0,0.24288688]
[1768152976096,0.09348,91014.0,91000.0,0.338955]
[1768152976400,0.09348,91014.0,91000.0,0.18823472]
[1768152976599,0.09348,91014.0,91000.0,0.338955]
[1768152977902,0.09348,91014.0,91002.0,0.09606812]
[1768152978701,0.09348,91014.0,90996.0,0.10707212]
[1768152978702,0.104482,91014.0,90996.0,0.10707212]
[1768152979004,0.011003,91011.0,90995.0,0.10863662]
[1768152980006,0.09348,91014.0,90998.0,0.09606812]
[1768152980602,0.09348,91014.0,90998.0,0.18823472]
[1768152981300,0.011002,91013.0,90998.0,0.0921666]
[1768152982109,0.011002,91013.0,90998.0,0.18823472]
[1768152982305,0.09348,91014.0,91000.0,0.09606812]
[1768152982510,0.011002,91013.0,90995.0,0.0125685]
[1768152982803,0.011003,91009.0,90994.0,0.09606812]
[1768152983007,0.191653,91014.0,90996.0,0.09606812]
[1768152983008,0.011002,91012.0,90996.0,0.09606812]
[1768152983216,0.09348,91014.0,90998.0,0.09606812]
[1768152983420,1.50852398,91005.0,90998.0,0.09606812]
[1768152986219,1.50852398,91005.0,90994.0,0.011005]
[1768152986912,1.50852398,91005.0,90994.0,0.10707312]
[1768152988003,1.50852398,91005.0,90993.0,0.0130402]
[1768152988197,1.50852398,91005.0,90991.0,0.1031716]
[1768152988614,1.50852398,91005.0,90991.0,0.19923972]
[1768152989109,0.10368363,91002.0,90991.0,0.01283667]
[1768152989315,0.011004,91002.0,90986.0,0.011006]
[1768152990015,0.011004,91003.0,90988.0,0.10639987]
[1768152990208,0.10368363,91003.0,90988.0,0.10639987]
[1768152990612,1.50852398,91005.0,90990.0,0.011005]
[1768152990812,0.011003,91004.0,90990.0,0.011005]
[1768152991217,1.50852398,91005.0,90992.0,0.011005]
[1768152991617,1.51952698,91005.0,90989.0,0.19923972]
[1768152992519,1.50852398,91005.0,90990.0,0.18823472]
[1768152992726,1.50852398,91005.0,90990.0,0.1031716]
[1768152994218,1.50852398,91005.0,90992.0,0.011005]
[1768152994515,1.50852398,91005.0,90990.0,0.0921666]
[1768152995325,1.50852398,91005.0,90992.0,0.011005]
[1768152995510,1.50852398,91005.0,90994.0,0.011004]
[1768152995713,1.50852398,91005.0,90994.0,0.011005]
[1768152995910,1.50852398,91005.0,90993.0,0.011005]
[1768152996110,1.50302975,91005.0,90997.0,0.09506947]
[1768152996510,1.50302975,91005.0,90996.0,0.09445032]
[1768152996819,1.50302975,91005.0,90992.0,0.011005]
[1768152997522,1.50302975,91005.0,90994.0,0.011005]
[1768152998320,1.50302975,91005.0,90996.0,0.011004]
[1768152999123,0.18987411,91014.0,90996.0,0.09506947]
[1768152999422,0.03212249,91013.0,91002.0,0.011004]
[1768152999623,0.03212249,91012.0,91002.0,0.011004]
[1768152999817,0.20087611,91014.0,91002.0,0.011004]
[1768153000017,0.03196656,91013.0,90998.0,0.011004]
[1768153000228,0.03196656,91012.0,91001.0,0.011004]
[1768153000416,0.03196656,91011.0,91001.0,0.011004]
[1768153000727,0.18987411,91014.0,91001.0,0.011004]
[1768153000921,0.03190878,91013.0,91001.0,0.011004]
[1768153001120,0.03190878,91012.0,91001.0,0.011004]
[1768153001323,0.03190878,91011.0,91001.0,0.011004]
[1768153001522,0.011002,91014.0,90999.0,0.09506947]
[1768153001718,0.03191611,91013.0,91002.0,0.011004]
[1768153001919,0.03191611,91012.0,91002.0,0.011004]
[1768153002227,0.011002,91015.0,91002.0,0.011004]
[1768153002516,0.03176708,91014.0,91002.0,0.011004]
[1768153002724,0.03176708,91013.0,90999.0,0.09506947]
[1768153002924,0.03176708,91012.0,90999.0,0.09506947]
[1768153003118,0.374282,91017.0,91002.0,0.011004]
[1768153003325,0.011002,91015.0,91002.0,0.011004]
[1768153003526,0.011002,91013.0,90999.0,0.10607347]
[1768153003724,0.36328,91017.0,91001.0,0.011004]
[1768153004023,0.0427622,91016.0,91001.0,0.011004]
[1768153004220,0.011002,91016.0,91003.0,0.011004]
[1768153004419,0.011002,91016.0,91000.0,0.011004]
[1768153004619,0.011002,91016.0,91002.0,0.011004]
[1768153006729,0.20087611,91019.0,91002.0,0.011004]
[1768153006929,0.011002,91017.0,91002.0,0.011004]
[1768153007326,0.09516751,91018.0,90999.0,0.09506947]
[1768153007530,0.011002,91018.0,91004.0,0.011003]
[1768153007922,0.011002,91018.0,91001.0,0.011004]
[1768153008827,0.18987411,91019.0,90999.0,0.09506947]
[1768153009031,0.03176211,91018.0,90999.0,0.09506947]
[1768153009331,0.011002,91018.0,91003.0,0.011004]
[1768153009733,0.10616951,91018.0,91003.0,0.011004]
[1768153010033,0.10616951,91018.0,91000.0,0.011004]
[1768153010232,0.10616951,91018.0,91002.0,0.011004]
[1768153010626,0.20087611,91018.0,91002.0,0.011004]
[1768153014239,0.1057086,91018.0,91004.0,0.011003]
[1768153014837,0.0947066,91018.0,91005.0,0.011003]
[1768153015237,0.18987411,91018.0,91005.0,0.011003]
[1768153015431,0.18987411,91017.0,91005.0,0.011003]
[1768153016028,0.18987411,91017.0,90997.0,0.09445032]
[1768153016237,0.0947066,91017.0,91004.0,0.011003]
[1768153017440,0.09516751,91011.0,90998.0,0.011004]
[1768153017644,0.09516751,91009.0,90995.0,0.011004]
[1768153017845,0.09516751,91009.0,90997.0,0.011004]
[1768153018549,0.09516751,91009.0,90994.0,0.09352]
[1768153019049,0.09516751,91009.0,90998.0,0.011004]
[1768153019550,0.0947066,91010.0,90994.0,0.09352]
[1768153020350,0.0947066,91010.0,90999.0,0.011004]
[1768153020547,0.18987411,91006.0,90995.0,0.011004]
[1768153020747,0.09516751,91005.0,90995.0,0.011004]
[1768153020949,0.09516751,91005.0,90994.0,0.09352]
[1768153021151,0.0947066,91006.0,90996.0,0.011004]
[1768153021449,0.0947066,91006.0,90994.0,0.09352]
[1768153021847,0.0947066,91006.0,90995.0,0.011004]
[1768153022851,0.0947066,91006.0,90994.0,0.09352]
[1768153023248,0.1057096,91006.0,90994.0,0.09352]
[1768153023447,0.0947066,91006.0,90994.0,0.09352]
[1768153026452,0.0947066,91006.0,90994.0,0.104525]
[1768153026648,0.0947066,91006.0,90994.0,0.09352]
[1768153027447,0.0947066,91006.0,90995.0,0.011004]
[1768153027647,0.0947066,91006.0,90994.0,0.09352]
[1768153028857,0.0947066,91006.0,90994.0,0.104525]
[1768153029154,0.09516751,91009.0,90994.0,0.09352]
[1768153029455,0.09516751,91009.0,90995.0,0.011004]
[1768153030257,0.10617051,91009.0,90994.0,0.104525]
[1768153030958,0.09516751,91009.0,90996.0,0.011004]
[1768153031159,0.18508013,91011.0,90996.0,0.011004]
[1768153031458,0.19608313,91009.0,90994.0,0.09352]
[1768153031760,0.094835,91006.0,90994.0,0.09352]
[1768153031959,0.094835,91004.0,90994.0,0.09352]
[1768153032758,0.09024513,91005.0,90994.0,0.09352]
[1768153032957,0.09024513,91005.0,90994.0,0.104525]
[1768153033362,0.09024513,91005.0,90994.0,0.09352]
[1768153034654,0.09024513,91005.0,90994.0,0.104525]
[1768153034855,0.09024513,91005.0,90994.0,0.09352]
[1768153036466,0.19608313,91005.0,90994.0,0.09352]
[1768153036763,0.094835,91002.0,90989.0,0.011005]
[1768153037073,0.09024513,91001.0,90989.0,0.011005]
[1768153037266,0.09024513,91001.0,90991.0,0.011005]
[1768153038671,0.09024513,91001.0,90988.0,0.02392487]
[1768153038965,0.09024513,91001.0,90990.0,0.011005]
[1768153039961,0.09024513,91001.0,90991.0,0.011005]
[1768153040158,0.09024513,91001.0,90988.0,0.01291987]
[1768153040359,0.09024513,91001.0,90991.0,0.011005]
[1768153043071,0.09024513,91001.0,90990.0,0.15098563]
[1768153044074,0.09024513,91001.0,90993.0,0.011005]
[1768153044570,0.094835,91000.0,90988.0,0.01307151]
[1768153044868,0.094835,91000.0,90960.0,0.19802075]
[1768153044869,0.094835,90985.0,90966.0,0.0406385]
[1768153045165,0.86024,90999.0,90966.0,0.0406385]
[1768153045166,0.094835,90983.0,90966.0,0.02033145]
[1768153045361,0.094835,90979.0,90966.0,0.02033145]
[1768153045562,0.094835,90975.0,90956.0,0.011009]
[1768153045765,0.094835,90970.0,90956.0,0.02393438]
[1768153045966,0.18508013,90967.0,90956.0,0.01292538]
[1768153046161,0.18508013,90967.0,90951.0,0.01101]
[1768153046666,0.18508013,90967.0,90951.0,0.02445408]
[1768153046874,0.18508013,90967.0,90951.0,0.01344408]
[1768153047060,0.09024513,90965.0,90948.0,0.00241898]
[1768153047466,0.18508013,90964.0,90946.0,0.01318499]
[1768153047664,0.094835,90958.0,90946.0,0.01260397]
[1768153047969,0.18508013,90954.0,90945.0,0.00549786]
[1768153048168,0.18508013,90949.0,90938.0,0.01290448]
[1768153048366,0.18508013,90949.0,90929.0,0.09437587]
[1768153048566,0.18508013,90953.0,90934.0,0.011012]
[1768153048767,0.18508013,90952.0,90940.0,0.15098563]
[1768153049069,0.09024513,90952.0,90940.0,0.15098563]
[1768153049374,0.09352,90956.0,90942.0,0.15098563]
[1768153049572,0.09033441,90957.0,90947.0,0.15098563]
[1768153050968,0.09033441,90957.0,90940.0,0.09437587]
[1768153051161,0.09033441,90957.0,90947.0,0.15098563]
[1768153052464,8.928e-05,90957.0,90947.0,0.15098563]
[1768153053074,0.09352,90960.0,90942.0,0.10538687]
[1768153053374,0.18376513,90961.0,90950.0,0.15098563]
[1768153053759,0.18508013,90960.0,90950.0,0.15098563]
[1768153053966,0.09024513,90960.0,90950.0,0.15098563]
[1768153055971,0.09024513,90960.0,90946.0,0.01101]
[1768153056275,0.18375481,90961.0,90950.0,0.15098563]
[1768153056773,0.09352,90961.0,90950.0,0.15098563]
[1768153057568,0.18375481,90961.0,90946.0,0.01101]
[1768153057776,0.18375481,90961.0,90950.0,0.15098563]
[1768153058072,0.15098563,90980.0,90956.0,0.09375019]
[1768153058073,0.09023481,90975.0,90956.0,0.09375019]
[1768153058273,0.03890505,90974.0,90960.0,0.15098563]
[1768153058573,0.13246505,90973.0,90960.0,0.15098563]
[1768153058773,0.03890505,90972.0,90960.0,0.15098563]
[1768153058974,0.03890505,90971.0,90960.0,0.15098563]
[1768153059269,0.0389012,90970.0,90960.0,0.15098563]
[1768153059574,0.09356,90972.0,90960.0,0.15093563]
[1768153059875,0.12913632,90971.0,90960.0,0.15098563]
[1768153060065,0.09023481,90971.0,90960.0,0.15098563]
[1768153060265,0.03890315,90970.0,90954.0,0.011009]
[1768153060465,0.09023481,90972.0,90960.0,0.15098563]
[1768153060665,0.03890315,90971.0,90960.0,0.15098563]
[1768153060874,0.03890315,90970.0,90960.0,0.15098563]
[1768153061074,0.18379481,90972.0,90960.0,0.15098563]
[1768153061276,0.03890314,90971.0,90960.0,0.15098563]
[1768153061573,0.03890314,90970.0,90960.0,0.15098563]
[1768153061773,0.03890314,90969.0,90960.0,0.15098563]
[1768153061973,0.18379481,90972.0,90960.0,0.15098563]
[1768153062175,0.03890599,90971.0,90960.0,0.15098563]
[1768153062376,0.03890599,90970.0,90960.0,0.15098563]
[1768153062675,0.03890599,90969.0,90960.0,0.15098563]
[1768153062876,0.18379481,90972.0,90960.0,0.15098563]
[1768153063077,0.03890998,90971.0,90960.0,0.15098563]
[1768153063275,0.03890998,90970.0,90960.0,0.15098563]
[1768153063475,0.03890998,90969.0,90960.0,0.15098563]
[1768153063678,0.03890998,90968.0,90953.0,0.01101]
[1768153063876,0.03890998,90967.0,90959.0,0.15098563]
[1768153064077,0.09023481,90971.0,90959.0,0.15098563]
[1768153064274,0.03891537,90970.0,90959.0,0.15098563]
[1768153064474,0.09023481,90971.0,90959.0,0.15098563]
[1768153064475,0.03891537,90969.0,90959.0,0.15098563]
[1768153064773,0.03891537,90968.0,90959.0,0.15098563]
[1768153065073,0.03891537,90967.0,90958.0,0.15098563]
[1768153065379,0.03892985,90966.0,90958.0,0.15098563]
[1768153065684,0.09023481,90971.0,90958.0,0.15098563]
[1768153065976,0.03892983,90970.0,90958.0,0.15098563]
[1768153066164,0.03892983,90969.0,90958.0,0.15098563]
[1768153066364,0.03892983,90968.0,90958.0,0.15098563]
[1768153066576,0.03892983,90967.0,90958.0,0.15098563]
[1768153066874,0.03892983,90966.0,90958.0,0.15098563]
[1768153067074,0.03892983,90965.0,90958.0,0.15098563]
[1768153067276,0.03895057,90964.0,90958.0,0.15098563]
[1768153067475,0.09356,90972.0,90958.0,0.15098563]
[1768153067677,0.03895057,90971.0,90958.0,0.15098563]
[1768153067885,0.03895057,90970.0,90958.0,0.15098563]
[1768153068182,0.03895057,90969.0,90960.0,0.15098563]
[1768153068367,0.03895057,90969.0,90958.0,0.011009]
[1768153068368,0.011007,90974.0,90959.0,0.15098563]
[1768153068769,0.011007,90974.0,90960.0,0.09375019]
[1768153068975,0.00241818,90978.0,90964.0,0.15098563]
[1768153069176,0.00241818,90978.0,90968.0,0.15098563]
[1768153069375,0.00241818,90978.0,90961.0,0.09375019]
[1768153069671,0.01342518,90978.0,90961.0,0.09375019]
[1768153070281,0.00241818,90978.0,90961.0,0.18529483]
[1768153070481,0.00241818,90978.0,90964.0,0.011008]
[1768153070677,0.00241818,90978.0,90962.0,0.09375019]
[1768153070885,0.00241818,90978.0,90965.0,0.011008]
[1768153071885,0.09833422,90974.0,90959.0,0.011009]
[1768153072182,0.011007,90977.0,90954.0,0.09154464]
[1768153072484,0.011007,90973.0,90960.0,0.15098563]
[1768153072979,0.09023481,90976.0,90960.0,0.15098563]
[1768153074083,0.09018481,90976.0,90960.0,0.15098563]
[1768153074388,0.011007,90973.0,90957.0,0.10475919]
[1768153074589,0.011007,90973.0,90960.0,0.15098563]
[1768153075791,0.104567,90976.0,90960.0,0.15098563]
[1768153077488,0.104567,90976.0,90960.0,0.16199463]
[1768153077988,0.011007,90976.0,90960.0,0.16199463]
[1768153078494,0.104567,90976.0,90960.0,0.16199463]
[1768153078898,0.104567,90976.0,90961.0,0.011008]
[1768153080386,0.03133263,90975.0,90961.0,0.011008]
[1768153080587,0.03133263,90974.0,90961.0,0.011008]
[1768153080789,0.03133263,90973.0,90961.0,0.011008]
[1768153081099,0.104567,90976.0,90961.0,0.011008]
[1768153081100,0.03133263,90972.0,90961.0,0.011008]
[1768153081397,0.011007,90974.0,90958.0,0.19630383]
[1768153081598,0.03133494,90973.0,90960.0,0.15098563]
[1768153081897,0.0313349,90972.0,90960.0,0.16199463]
[1768153082096,0.09356,90976.0,90960.0,0.16199463]
[1768153082292,0.03133502,90975.0,90960.0,0.16199463]
[1768153082494,0.03133502,90974.0,90960.0,0.16199463]
[1768153082691,0.03133502,90973.0,90960.0,0.16199463]
[1768153082895,0.03133502,90972.0,90960.0,0.16199463]
[1768153083096,0.09356,90977.0,90960.0,0.16199463]
[1768153083299,0.03133786,90976.0,90960.0,0.011009]
[1768153083601,0.011007,90972.0,90960.0,0.15098563]
[1768153083803,0.03134022,90971.0,90960.0,0.15098563]
[1768153084100,0.03134022,90970.0,90960.0,0.15098563]
[1768153084291,0.03134022,90969.0,90960.0,0.15098563]
[1768153084602,0.01342518,90978.0,90964.0,0.19116318]
[1768153084898,0.01342518,90978.0,90968.0,0.15098563]
[1768153084899,0.00241818,90978.0,90968.0,0.15098563]
[1768153085093,0.011006,90984.0,90970.0,0.011007]
[1768153085596,0.25555063,90990.0,90975.0,0.011007]
[1768153085900,0.011005,90992.0,90974.0,0.09236541]
[1768153086096,0.09356,90991.0,90980.0,0.15098563]
[1768153086295,0.09356,90991.0,90978.0,0.011006]
[1768153086491,0.09356,90991.0,90976.0,0.011007]
[1768153086799,0.011005,90990.0,90974.0,0.06937241]
[1768153086990,0.011005,90988.0,90974.0,0.08037941]
[1768153087191,0.09868051,90993.0,90974.0,0.06937241]
[1768153087490,0.24942782,90994.0,90975.0,0.09879777]
[1768153087690,0.14486282,90994.0,90980.0,0.15098563]
[1768153087895,0.05175248,90994.0,90980.0,0.15098563]
[1768153088494,0.05267535,90994.0,90980.0,0.14067821]
[1768153088695,0.05267535,90994.0,90982.0,0.09193885]
[1768153088903,0.011004,91000.0,90984.0,0.10294485]
[1768153089293,0.011004,91000.0,90984.0,0.19755942]
[1768153089696,0.15140787,91004.0,90984.0,0.18655342]
[1768153090198,0.0921631,91004.0,90985.0,0.09193885]
[1768153090399,0.00549423,91005.0,90991.0,0.09193885]
[1768153090592,0.00549423,91005.0,90990.0,0.011005]
[1768153090788,0.00549423,91005.0,90990.0,0.16199063]
[1768153090997,0.011003,91004.0,90987.0,0.011005]
[1768153091293,0.011003,91004.0,90990.0,0.15098563]
[1768153091495,0.011003,91004.0,90987.0,0.011005]
[1768153091700,0.1031671,90998.0,90981.0,0.011006]
[1768153092001,0.0921631,90998.0,90981.0,0.011006]
[1768153092706,0.011004,90999.0,90981.0,0.10294485]
[1768153093303,0.011004,90997.0,90981.0,0.10294485]
[1768153093502,0.011004,91000.0,90983.0,0.011006]
[1768153093694,0.011004,90998.0,90983.0,0.011006]
[1768153093893,0.011004,90998.0,90982.0,0.09461457]
[1768153094099,0.10350261,91005.0,90985.0,0.09461457]
[1768153094100,0.011004,91001.0,90985.0,0.09461457]
[1768153095408,0.011004,91001.0,90986.0,0.011006]
[1768153095703,0.1031661,91004.0,90986.0,0.011006]
[1768153096096,0.1031661,91004.0,90990.0,0.15098563]
[1768153097407,0.1031661,91004.0,90988.0,0.011005]
[1768153097597,0.1031661,91004.0,90990.0,0.15098563]
[1768153098306,0.1031661,91004.0,90988.0,0.011005]
[1768153098502,0.1031661,91004.0,90990.0,0.15098563]
[1768153099099,0.011003,91004.0,90990.0,0.15098563]
[1768153099300,0.00549423,91005.0,90990.0,0.16199063]
[1768153099503,0.00549423,91005.0,90992.0,0.09193885]
[1768153099811,0.00549423,91005.0,90993.0,0.09193885]
[1768153099994,0.00549423,91005.0,90996.0,0.09193885]
[1768153100200,0.09352,91014.0,90997.0,0.09193885]
[1768153100395,0.09352,91014.0,91000.0,0.15098563]
[1768153101007,0.09352,91014.0,91000.0,0.12098563]
[1768153101604,0.1856831,91017.0,91000.0,0.13198963]
[1768153102405,0.011002,91016.0,91000.0,0.13198963]
[1768153103309,0.011002,91016.0,91000.0,0.011004]
[1768153103310,0.09352,91016.0,91000.0,0.011004]
[1768153103501,0.09352,91016.0,90999.0,0.09193885]
[1768153103695,0.09352,91016.0,91002.0,0.011004]
[1768153104509,0.09352,91016.0,91001.0,0.011004]
[1768153105012,0.09352,91016.0,91003.0,0.011003]
[1768153106506,0.0921631,91014.0,91000.0,0.011004]
[1768153106706,0.09352,91016.0,91000.0,0.10294285]
[1768153106912,0.09352,91016.0,91002.0,0.011004]
[1768153107112,0.1856831,91016.0,91002.0,0.011004]
[1768153107505,0.1856831,91016.0,90999.0,0.011004]
[1768153108308,0.0921631,91015.0,90999.0,0.011004]
[1768153114216,0.0921631,91015.0,91001.0,0.011004]
[1768153114917,0.0921631,91015.0,90989.0,0.09352]
[1768153114918,0.09045819,91019.0,91000.0,0.0974703]
[1768153115919,0.011001,91024.0,91009.0,0.011003]
[1768153116114,0.011001,91024.0,91004.0,0.19323349]
[1768153116115,0.09045819,91024.0,91004.0,0.20423649]
[1768153116321,0.011001,91021.0,91004.0,0.20423649]
[1768153116517,0.09045819,91021.0,91006.0,0.011003]